[Event "ISR-chT U14 2018"]
[Site "Nir HaEmek"]
[Date "2018.08.14"]
[Round "5"]
[White "Ben Ari, Yannay"]
[Black "Cohen Revivo, Shoham"]
[Result "1-0"]
[ECO "B24"]
[WhiteElo "2022"]
[BlackElo "2285"]
[Annotator "NA"]
[PlyCount "123"]
[EventDate "2018.08.12"]
[EventType "team-tourn"]
[EventCountry "ISR"]
[SourceTitle "playchess.com"]
[Source "ChessBase"]
[SourceQuality "1"]
[TimeControl "3060+10"]

1. e4 {[%emt 0:00:54]} c5 {[%emt 0:01:02]} 2. Nc3 {[%emt 0:00:24]} Nc6 {[%emt 0:00:23]} 3. g3 {[%emt 0:00:08]} g6 {[%emt 0:00:48]} 4. Bg2 {[%emt 0:00:03]} Bg7 {[%emt 0:00:07]} 5. Nge2 {[%emt 0:00:18]} e6 {[%emt 0:00:23]} 6. O-O {[%emt 0:00:12]} Nge7 {[%emt 0:00:10]} 7. d3 {[%emt 0:02:41]} O-O {[%emt 0:02:48]} 8. Be3 {[%emt 0:04:40]} Nd4 {[%emt 0:00:12]} 9. a3 {[%emt 0:07:58] B24: Closed Sicilian: 3 g3 sidelines} (9. Qd2 d6 10. Nd1 Rb8 11. Nxd4 cxd4 12. Bh6 Bxh6 13. Qxh6 Qc7 14. c3 Qc5 15. Rc1 Nc6 16. Qd2 Bd7 17. cxd4 Qxd4 18. Ne3 Ne5 {½-½ (43) Pridorozhni,A (2565)-Savchenko,B (2581) Sochi 2017}) 9... Nec6 {[%emt 0:03:29]} 10. Rb1 {[%emt 0:00:21]} d6 {[%emt 0:02:08]} 11. b4 {[%emt 0:01:25]} Rb8 {[%emt 0:08:25]} 12. bxc5 {[%emt 0:33:56]} dxc5 {[%emt 0:00:08]} 13. f4 {[%emt 0:00:00]} b6 $146 {[%emt 0:09:20]} ({Predecessor:} 13... e5 14. f5 gxf5 15. exf5 Bxf5 16. Bxc6 bxc6 17. Rxb8 Qxb8 18. Bxd4 exd4 19. Rxf5 dxc3 {½-½ (45) Danielyan,V (2240)-Igonin,T (2474) Yerevan 2016}) 14. e5 {[%emt 0:00:00]} Bb7 {[%emt 0:00:29]} 15. Ne4 {[%emt 0:00:00]} Nf5 {[%emt 0:03:29]} 16. Bf2 {[%emt 0:00:00]} Ncd4 {[%emt 0:00:18]} 17. c3 {[%emt 0:00:00]} Nxe2+ {[%emt 0:00:34]} 18. Qxe2 {[%emt 0:00:00]} f6 {[%emt 0:02:05]} 19. g4 {[%emt 0:00:00]} Bxe4 {[%emt 0:00:25]} 20. dxe4 {[%emt 0:00:00]} Ne7 {[%emt 0:00:47]} 21. exf6 {[%emt 0:00:00]} Bxf6 {[%emt 0:00:21]} 22. e5 {[%emt 0:00:00]} Bg7 {[%emt 0:00:11]} 23. Bh4 {[%emt 0:00:00]} Qc7 {[%emt 0:00:45]} 24. Qc4 {[%emt 0:00:00]} Rbe8 {[%emt 0:01:41]} 25. Qxe6+ {[%emt 0:00:00]} Kh8 {[%emt 0:00:02]} 26. Qd6 {[%emt 0:00:00]} Qc8 {[%emt 0:02:08]} 27. Bxe7 {[%emt 0:00:00]} Rf7 {[%emt 0:00:03]} 28. Bf6 {[%emt 0:00:00]} Bxf6 {[%emt 0:00:17]} 29. exf6 {[%emt 0:00:00]} Qxg4 {[%emt 0:12:52]} 30. Rbe1 {[%emt 0:03:00]} Ref8 {[%emt 0:00:00]} 31. Qe6 {[%emt 0:00:00]} Qxe6 {[%emt 0:00:20]} 32. Rxe6 {[%emt 0:00:00]} Rxf6 {[%emt 0:00:00]} 33. Rxf6 {[%emt 0:00:00]} Rxf6 {[%emt 0:00:00]} 34. Bd5 {[%emt 0:00:00]} Kg7 {[%emt 0:00:00]} 35. Kg2 {[%emt 0:00:00]} Kf8 {[%emt 0:00:00]} 36. Kf3 {[%emt 0:00:00]} Ke7 {[%emt 0:00:00]} 37. Ke4 {[%emt 0:00:00]} Rf5 {[%emt 0:00:00]} 38. Rf3 {[%emt 0:00:00]} Rh5 {[%emt 0:00:00]} 39. h3 {[%emt 0:00:00]} Kf6 {[%emt 0:00:00]} 40. c4 {[%emt 0:00:00]} Rh4 {[%emt 0:00:00]} 41. Ke3 {[%emt 0:00:00]} Kf5 {[%emt 0:02:00]} 42. Be4+ {[%emt 0:00:00]} Ke6 {[%emt 0:00:00]} 43. Kf2 {[%emt 0:00:00]} Rh5 {[%emt 0:00:00]} 44. Kg3 {[%emt 0:00:00]} Kd6 {[%emt 0:00:00]} 45. Kg4 {[%emt 0:00:00]} Rh6 {[%emt 0:00:00]} 46. Rd3+ {[%emt 0:00:00]} Kc7 {[%emt 0:00:00]} 47. Rd5 {[%emt 0:00:00]} a6 {[%emt 0:00:00]} 48. a4 {[%emt 0:00:00]} g5 $18 {[%emt 0:03:10]} 49. Rxg5 {[%emt 0:00:00]} Re6 {[%emt 0:00:00]} 50. Re5 {[%emt 0:00:00]} Rd6 {[%emt 0:00:00]} 51. Bd5 {[%emt 0:00:00]} Rg6+ {[%emt 0:00:00]} 52. Rg5 {[%emt 0:00:00]} Rf6 {[%emt 0:00:08]} 53. f5 {[%emt 0:00:00]} Kd6 {[%emt 0:00:08]} 54. Rg7 {[%emt 0:00:00]} b5 {[%emt 0:00:06]} 55. axb5 {[%emt 0:07:10]} axb5 {[%emt 0:00:01]} 56. Rb7 {[%emt 0:00:23]} Ke5 {[%emt 0:01:24]} 57. Rxb5 {[%emt 0:00:16]} Rxf5 {[%emt 0:00:02]} 58. Rxc5 {[%emt 0:00:15]} h5+ {[%emt 0:00:18]} 59. Kg3 {[%emt 0:06:52]} Kd4 {[%emt 0:00:05]} 60. Rc8 {[%emt 0:00:12]} Rg5+ {[%emt 0:00:19]} 61. Kh4 {[%emt 0:00:18]} Rf5 {[%emt 0:00:03]} 62. Rh8 {[%emt 0:00:05]} 1-0

[Event "ISR-chT U14 2018"]
[Site "Nir HaEmek"]
[Date "2018.08.14"]
[Round "5"]
[White "Zholti, Alon"]
[Black "Mizrahi, Ido"]
[Result "1/2-1/2"]
[ECO "D14"]
[WhiteElo "1976"]
[BlackElo "1943"]
[Annotator "NA"]
[PlyCount "67"]
[EventDate "2018.08.12"]
[EventType "team-tourn"]
[EventCountry "ISR"]
[SourceTitle "playchess.com"]
[Source "ChessBase"]
[SourceQuality "1"]
[TimeControl "3060+10"]

1. d4 {[%emt 0:00:50]} d5 {[%emt 0:00:56]} 2. c4 {[%emt 0:00:02]} c6 {[%emt 0:00:06]} 3. cxd5 {[%emt 0:00:03]} cxd5 {[%emt 0:00:07]} 4. Bf4 {[%emt 0:00:03]} Nc6 {[%emt 0:00:12]} 5. Nc3 {[%emt 0:00:12]} Nf6 {[%emt 0:00:10]} 6. Nf3 {[%emt 0:00:08]} Bf5 {[%emt 0:01:34]} 7. e3 {[%emt 0:00:42]} Rc8 {[%emt 0:04:28]} 8. Qb3 {[%emt 0:10:42]} Na5 {[%emt 0:08:54]} 9. Qa4+ {[%emt 0:02:01]} Bd7 {[%emt 0:00:41]} 10. Bb5 {[%emt 0:01:00]} Nc6 {[%emt 0:02:56]} 11. Ne5 {[%emt 0:05:21]} a6 {[%emt 0:03:43]} 12. Nxd7 {[%emt 0:02:53]} Qxd7 {[%emt 0:01:17]} 13. Bd3 {[%emt 0:01:33]} e6 {[%emt 0:01:28]} 14. O-O {[%emt 0:01:26]} Be7 {[%emt 0:00:57]} 15. Rac1 {[%emt 0:01:16]} O-O {[%emt 0:00:55]} 16. a3 {[%emt 0:02:02]} Nh5 {[%emt 0:02:39]} 17. Bg3 {[%emt 0:01:02]} Nxg3 {[%emt 0:01:15]} 18. hxg3 {[%emt 0:00:19]} Rc7 {[%emt 0:01:25]} 19. b4 {[%emt 0:05:16]} Rfc8 {[%emt 0:04:07]} 20. Qb3 {[%emt 0:04:42]} b5 {[%emt 0:09:10]} 21. Rc2 {[%emt 0:02:36]} Nd8 {[%emt 0:00:50]} 22. Rfc1 {[%emt 0:00:51]} Nb7 {[%emt 0:00:26]} 23. a4 {[%emt 0:07:04]} bxa4 {[%emt 0:00:47]} 24. Nxa4 {[%emt 0:00:02]} Rxc2 {[%emt 0:00:19]} 25. Rxc2 {[%emt 0:00:01]} Rxc2 {[%emt 0:00:33]} 26. Qxc2 {[%emt 0:00:28]} Bxb4 {[%emt 0:01:25]} 27. Bxa6 {[%emt 0:00:31]} Nd8 {[%emt 0:03:54]} 28. Nb2 {[%emt 0:01:49]} Qc6 {[%emt 0:00:11]} 29. Qxc6 {[%emt 0:00:22]} Nxc6 {[%emt 0:00:01]} 30. Nd3 {[%emt 0:00:03]} Be7 {[%emt 0:00:15]} 31. Bb5 {[%emt 0:00:09]} Nb4 {[%emt 0:00:16]} 32. Ne5 {[%emt 0:00:15]} f6 {[%emt 0:00:10]} 33. Nf3 {[%emt 0:00:22]} Kf7 {[%emt 0:00:01]} 34. Nd2 {[%emt 0:00:11]} 1/2-1/2

[Event "ISR-chT U14 2018"]
[Site "Nir HaEmek"]
[Date "2018.08.14"]
[Round "5"]
[White "Verny, David"]
[Black "Rotem-Purshpan, Nir"]
[Result "1-0"]
[ECO "C18"]
[WhiteElo "1946"]
[BlackElo "1767"]
[Annotator "NA"]
[PlyCount "102"]
[EventDate "2018.08.12"]
[EventType "team-tourn"]
[EventCountry "ISR"]
[SourceTitle "playchess.com"]
[Source "ChessBase"]
[SourceQuality "1"]
[TimeControl "3060+10"]

1. e4 {[%emt 0:00:51]} e6 {[%emt 0:01:00]} 2. d4 {[%emt 0:00:01]} d5 {[%emt 0:00:11]} 3. Nc3 {[%emt 0:00:04]} Bb4 {[%emt 0:00:14]} 4. e5 {[%emt 0:00:09]} c5 {[%emt 0:00:14]} 5. a3 {[%emt 0:00:07]} Bxc3+ {[%emt 0:00:07]} 6. bxc3 {[%emt 0:00:06]} Ne7 {[%emt 0:00:15]} 7. Qg4 {[%emt 0:00:07]} Qc7 {[%emt 0:00:22]} 8. Bd2 {[%emt 0:00:44]} cxd4 {[%emt 0:02:03]} 9. cxd4 {[%emt 0:00:07]} Nbc6 {[%emt 0:05:25]} 10. Nf3 {[%emt 0:00:32]} Ng6 {[%emt 0:03:01]} 11. h4 {[%emt 0:00:18]} h5 {[%emt 0:03:05]} 12. Qg5 {[%emt 0:02:55]} Qe7 {[%emt 0:05:10]} 13. Qg3 {[%emt 0:00:35]} Bd7 {[%emt 0:04:51]} 14. Bd3 {[%emt 0:00:15]} O-O-O {[%emt 0:05:35]} 15. Bxg6 {[%emt 0:00:21]} fxg6 {[%emt 0:00:10]} 16. Qxg6 {[%emt 0:00:06]} Rdf8 {[%emt 0:03:00]} 17. Bg5 {[%emt 0:03:09]} Qf7 {[%emt 0:01:20]} 18. Qxf7 {[%emt 0:02:50]} Rxf7 {[%emt 0:00:02]} 19. Bd2 {[%emt 0:00:16]} Rhf8 {[%emt 0:05:49]} 20. Rh3 {[%emt 0:00:17]} Be8 {[%emt 0:01:48]} 21. Rg3 {[%emt 0:01:06]} a6 {[%emt 0:04:25]} 22. Rb1 {[%emt 0:04:59]} Ne7 {[%emt 0:03:09]} 23. Bb4 {[%emt 0:02:18]} Nf5 {[%emt 0:00:15]} 24. Rg6 {[%emt 0:00:53]} Rg8 {[%emt 0:00:59]} 25. Rxe6 {[%emt 0:00:45]} Ba4 {[%emt 0:00:20]} 26. Rc1 {[%emt 0:00:36]} Rc7 {[%emt 0:00:23]} 27. c3 {[%emt 0:00:55]} Kb8 {[%emt 0:00:40]} 28. Rg6 {[%emt 0:00:17]} Ka8 {[%emt 0:00:30]} 29. Rg5 {[%emt 0:30:11]} g6 {[%emt 0:00:06]} 30. Kd2 {[%emt 0:00:00]} b6 {[%emt 0:00:08]} 31. Re1 {[%emt 0:00:00]} Rgc8 {[%emt 0:00:28]} 32. Rc1 {[%emt 0:00:00]} Rc6 {[%emt 0:00:09]} 33. g3 {[%emt 0:00:00]} a5 {[%emt 0:00:06]} 34. Bd6 {[%emt 0:00:00]} Nxd6 {[%emt 0:00:05]} 35. exd6 {[%emt 0:00:00]} Rxd6 {[%emt 0:00:01]} 36. Ne5 {[%emt 0:00:00]} Be8 {[%emt 0:00:24]} 37. Nd3 {[%emt 0:00:00]} Kb7 {[%emt 0:00:46]} 38. Nf4 {[%emt 0:00:00]} Ka6 {[%emt 0:00:05]} 39. Rxd5 {[%emt 0:00:00]} Rdc6 {[%emt 0:00:02]} 40. Re5 {[%emt 0:00:00]} Bf7 {[%emt 0:00:21]} 41. Nd5 {[%emt 0:00:00]} Rd6 {[%emt 0:00:22]} 42. Nf4 {[%emt 0:00:00]} Rdc6 {[%emt 0:00:01]} 43. Re7 {[%emt 0:00:00]} Rf6 {[%emt 0:00:26]} 44. Rb1 {[%emt 0:00:00]} Bc4 {[%emt 0:00:13]} 45. Rbe1 {[%emt 0:00:00]} Rfc6 {[%emt 0:00:07]} 46. R1e3 {[%emt 0:00:00]} Kb5 {[%emt 0:00:03]} 47. Kc2 {[%emt 0:00:00]} Ka4 {[%emt 0:00:04]} 48. Kb2 {[%emt 0:00:00]} Bb3 {[%emt 0:00:18]} 49. Rg7 {[%emt 0:00:00]} b5 {[%emt 0:00:18]} 50. Nxg6 {[%emt 0:00:00]} R6c7 {[%emt 0:00:12]} 51. Rxc7 {[%emt 0:03:40] Rxc7Re7 [%clk 0:16:53]} Bd1 {[%emt 0:00:05]} 1-0

[Event "ISR-chT U14 2018"]
[Site "Nir HaEmek"]
[Date "2018.08.14"]
[Round "5"]
[White "Yusupoff, Yoav"]
[Black "Friedland, Eldar"]
[Result "1/2-1/2"]
[ECO "D10"]
[WhiteElo "1634"]
[BlackElo "1876"]
[Annotator "NA"]
[PlyCount "80"]
[EventDate "2018.08.12"]
[EventType "team-tourn"]
[EventCountry "ISR"]
[SourceTitle "playchess.com"]
[Source "ChessBase"]
[SourceQuality "1"]
[TimeControl "3060+10"]

1. c4 {[%emt 0:00:52]} c6 {[%emt 0:01:04]} 2. d4 {[%emt 0:00:04]} d5 {[%emt 0:00:06]} 3. cxd5 {[%emt 0:00:04]} cxd5 {[%emt 0:00:05]} 4. Bg5 {[%emt 0:00:05]} Nc6 {[%emt 0:00:33]} 5. Nc3 {[%emt 0:00:22]} Nf6 {[%emt 0:04:07]} 6. Bxf6 {[%emt 0:00:07]} exf6 {[%emt 0:01:07]} 7. e3 {[%emt 0:01:21]} Bb4 {[%emt 0:02:39]} 8. Nge2 {[%emt 0:01:38]} O-O {[%emt 0:00:45]} 9. a3 {[%emt 0:04:23]} Ba5 {[%emt 0:01:14]} 10. g3 {[%emt 0:00:02]} Re8 {[%emt 0:01:02]} 11. Bg2 {[%emt 0:00:45]} Bg4 {[%emt 0:02:44]} 12. b4 {[%emt 0:02:04]} Bb6 {[%emt 0:05:11]} 13. Qd2 {[%emt 0:02:23]} Bxe2 {[%emt 0:02:37]} 14. Nxe2 {[%emt 0:00:12]} a5 {[%emt 0:02:18]} 15. O-O {[%emt 0:02:42]} axb4 {[%emt 0:02:58]} 16. axb4 {[%emt 0:00:06]} Qd6 {[%emt 0:00:20]} 17. b5 {[%emt 0:02:54]} Ba5 {[%emt 0:02:08]} 18. Qa2 {[%emt 0:01:50]} Nb4 {[%emt 0:00:48]} 19. Qb3 {[%emt 0:00:19]} b6 {[%emt 0:00:35]} 20. Nc3 {[%emt 0:01:44]} Red8 {[%emt 0:00:09]} 21. Rfd1 {[%emt 0:00:25]} Rac8 {[%emt 0:00:11]} 22. Rac1 {[%emt 0:00:06]} Kf8 {[%emt 0:02:34]} 23. Na2 {[%emt 0:03:06]} Nxa2 {[%emt 0:03:30]} 24. Qxa2 {[%emt 0:00:06]} Qd7 {[%emt 0:04:55]} 25. Rxc8 {[%emt 0:01:15]} Rxc8 {[%emt 0:00:04]} 26. Qxd5 {[%emt 0:00:10]} Qxd5 {[%emt 0:00:20]} 27. Bxd5 {[%emt 0:00:03]} Rc3 {[%emt 0:01:36]} 28. Kg2 {[%emt 0:02:51]} f5 {[%emt 0:00:06]} 29. Kf3 {[%emt 0:01:07]} Ke7 {[%emt 0:00:20]} 30. h4 {[%emt 0:00:41]} h6 {[%emt 0:00:11]} 31. Kf4 {[%emt 0:00:25]} Kf6 {[%emt 0:00:48]} 32. Bc6 {[%emt 0:01:51]} Rc2 {[%emt 0:01:25]} 33. Kf3 {[%emt 0:00:36]} g5 {[%emt 0:00:35]} 34. hxg5+ {[%emt 0:00:23]} hxg5 {[%emt 0:00:04]} 35. d5 {[%emt 0:00:09]} Rd2 {[%emt 0:01:45]} 36. Rh1 {[%emt 0:01:40]} Ke5 {[%emt 0:00:43]} 37. Rh7 {[%emt 0:04:54]} Kf6 {[%emt 0:00:50]} 38. Kg2 {[%emt 0:01:10]} Bb4 {[%emt 0:00:27]} 39. Rh8 {[%emt 0:01:11]} Bc5 {[%emt 0:00:14]} 40. Kf1 {[%emt 0:11:34]} Ke5 {[%emt 0:00:00]} 1/2-1/2

[Event "ISR-chT U14 2018"]
[Site "Nir HaEmek"]
[Date "2018.08.14"]
[Round "5"]
[White "Shteiman, Yuval"]
[Black "Glatt, Oded"]
[Result "0-1"]
[ECO "B22"]
[WhiteElo "1584"]
[BlackElo "1645"]
[Annotator "NA"]
[PlyCount "58"]
[EventDate "2018.08.12"]
[EventType "team-tourn"]
[EventCountry "ISR"]
[SourceTitle "playchess.com"]
[Source "ChessBase"]
[SourceQuality "1"]
[TimeControl "3060+10"]

1. e4 {[%emt 0:00:52]} c5 {[%emt 0:00:55]} 2. Nf3 {[%emt 0:00:04]} e6 {[%emt 0:00:07]} 3. c3 {[%emt 0:00:04]} Nf6 {[%emt 0:00:30]} 4. e5 {[%emt 0:00:20]} Nd5 {[%emt 0:00:14]} 5. Bc4 {[%emt 0:50:30]} Nc6 {[%emt 0:00:44]} 6. O-O {[%emt 0:00:00]} d6 {[%emt 0:03:09]} 7. exd6 {[%emt 0:00:00]} Bxd6 {[%emt 0:01:10]} 8. d4 {[%emt 0:00:00]} O-O {[%emt 0:01:49]} 9. Nbd2 {[%emt 0:00:00]} cxd4 {[%emt 0:01:52]} 10. cxd4 {[%emt 0:00:00]} Nf6 {[%emt 0:09:53]} 11. Re1 {[%emt 0:00:00]} Qc7 {[%emt 0:01:15]} 12. Bb5 {[%emt 0:00:00]} a6 {[%emt 0:06:06]} 13. Bxc6 {[%emt 0:00:00]} Qxc6 {[%emt 0:01:19]} 14. Ne5 {[%emt 0:00:00]} Bxe5 {[%emt 0:01:47]} 15. dxe5 {[%emt 0:00:00]} Nd5 {[%emt 0:00:44]} 16. Nf3 {[%emt 0:00:00]} b5 {[%emt 0:01:57]} 17. Bd2 {[%emt 0:00:00]} Bb7 {[%emt 0:00:52]} 18. Rc1 {[%emt 0:00:00]} Qb6 {[%emt 0:00:22]} 19. Qb3 {[%emt 0:00:00]} Rac8 {[%emt 0:01:52]} 20. Ng5 {[%emt 0:00:00]} Qd4 {[%emt 0:03:13]} 21. Rcd1 {[%emt 0:00:00]} Qg4 {[%emt 0:05:21]} 22. Ne4 {[%emt 0:00:00]} Rfd8 {[%emt 0:01:56]} 23. h3 {[%emt 0:00:00]} Qg6 {[%emt 0:00:52]} 24. Nd6 {[%emt 0:01:13]} Rxd6 {[%emt 0:00:51]} 25. exd6 {[%emt 0:00:21]} Ne3 {[%emt 0:00:49]} 26. g3 {[%emt 0:00:36]} Qe4 {[%emt 0:00:47]} 27. f3 {[%emt 0:00:46]} Qxf3 {[%emt 0:00:19]} 28. Re2 {[%emt 0:00:38]} Qxe2 {[%emt 0:00:35]} 29. Qxe3 {[%emt 0:00:08]} Qg2# {[%emt 0:00:04]} 0-1

[Event "ISR-chT U14 2018"]
[Site "Nir HaEmek"]
[Date "2018.08.14"]
[Round "5"]
[White "Gadasi, Noam"]
[Black "Nagar, Or"]
[Result "0-1"]
[ECO "D52"]
[WhiteElo "1540"]
[BlackElo "1505"]
[Annotator "NA"]
[PlyCount "114"]
[EventDate "2018.08.12"]
[EventType "team-tourn"]
[EventCountry "ISR"]
[SourceTitle "playchess.com"]
[Source "ChessBase"]
[SourceQuality "1"]
[TimeControl "3060+10"]

1. d4 {[%emt 0:00:55]} d5 {[%emt 0:00:54]} 2. c4 {[%emt 0:00:06]} c6 {[%emt 0:00:09]} 3. Nf3 {[%emt 0:00:18]} Nf6 {[%emt 0:00:07]} 4. Nc3 {[%emt 0:00:13]} e6 {[%emt 0:00:03]} 5. Bg5 {[%emt 0:00:35]} Nbd7 {[%emt 0:00:19]} 6. e3 {[%emt 0:00:31]} Qa5 {[%emt 0:00:07]} 7. a3 {[%emt 0:07:51]} Ne4 {[%emt 0:03:40]} 8. Qc1 {[%emt 0:02:39]} dxc4 {[%emt 0:06:41]} 9. Bf4 {[%emt 0:00:57]} Nb6 {[%emt 0:01:19]} 10. Ne5 {[%emt 0:02:40]} Nxc3 {[%emt 0:08:05]} 11. bxc3 {[%emt 0:02:52]} Nd5 {[%emt 0:03:44]} 12. Kd2 {[%emt 0:01:08]} b5 {[%emt 0:02:31]} 13. Nxc6 {[%emt 0:02:27]} Qb6 {[%emt 0:01:03]} 14. Ne5 {[%emt 0:01:38]} f6 {[%emt 0:06:35]} 15. Nf3 {[%emt 0:01:14]} Nxf4 {[%emt 0:00:23]} 16. exf4 {[%emt 0:00:11]} Bd6 {[%emt 0:01:51]} 17. g3 {[%emt 0:00:49]} Bb7 {[%emt 0:02:00]} 18. Bg2 {[%emt 0:00:24]} O-O {[%emt 0:00:36]} 19. Rd1 {[%emt 0:01:30]} e5 {[%emt 0:01:09]} 20. Ke1 {[%emt 0:13:53]} exf4 {[%emt 0:00:38]} 21. gxf4 {[%emt 0:02:56]} Rfe8+ {[%emt 0:01:03]} 22. Kf1 {[%emt 0:00:48]} Qc7 {[%emt 0:03:56]} 23. h3 {[%emt 0:02:12]} Bxf4 {[%emt 0:00:18]} 24. Qb2 {[%emt 0:00:59]} Be4 {[%emt 0:01:51]} 25. Re1 {[%emt 0:01:38]} Qb7 {[%emt 0:01:18]} 26. Nh4 {[%emt 0:00:17]} Bxg2+ {[%emt 0:00:06]} 27. Nxg2 {[%emt 0:00:02]} Qf3 {[%emt 0:00:57]} 28. Kg1 {[%emt 0:01:47]} Bd6 {[%emt 0:01:05]} 29. Qd2 {[%emt 0:00:31]} Qxh3 {[%emt 0:00:23]} 30. f4 {[%emt 0:00:07]} g5 {[%emt 0:01:23]} 31. Qf2 {[%emt 0:00:53]} gxf4 {[%emt 0:00:30]} 32. Nxf4 {[%emt 0:00:31]} Qg4+ {[%emt 0:00:22]} 33. Ng2 {[%emt 0:00:02]} Bg3 {[%emt 0:00:27]} 34. Qf1 {[%emt 0:00:07]} Rxe1 {[%emt 0:00:21]} 35. Rxe1 {[%emt 0:00:03]} Bxe1 {[%emt 0:00:02]} 36. Qxe1 {[%emt 0:00:02]} Kf7 {[%emt 0:00:11]} 37. Qf2 {[%emt 0:00:15]} Re8 {[%emt 0:00:05]} 38. Kf1 {[%emt 0:00:06]} Qd1+ {[%emt 0:00:02]} 39. Ne1 {[%emt 0:00:04]} Qh5 {[%emt 0:00:27]} 40. Ng2 {[%emt 0:00:27]} Qh1+ {[%emt 0:00:24]} 41. Qg1 {[%emt 0:00:01]} Qxg1+ {[%emt 0:00:12]} 42. Kxg1 {[%emt 0:00:02]} Re2 {[%emt 0:00:03]} 43. Nf4 {[%emt 0:00:10]} Ra2 {[%emt 0:00:10]} 44. Nd5 {[%emt 0:00:35]} Rxa3 {[%emt 0:00:09]} 45. Kf2 {[%emt 0:00:15]} h5 {[%emt 0:00:10]} 46. Kg3 {[%emt 0:00:03]} Ra2 {[%emt 0:00:13]} 47. Nc7 {[%emt 0:00:26]} a6 {[%emt 0:00:07]} 48. Kh4 {[%emt 0:00:07]} Rh2+ {[%emt 0:00:07]} 49. Kg3 {[%emt 0:00:00]} Rc2 {[%emt 0:00:01]} 50. Nxa6 {[%emt 0:00:16]} Rxc3+ {[%emt 0:00:02]} 51. Kh4 {[%emt 0:00:01]} Kg6 {[%emt 0:00:09]} 52. Nc7 {[%emt 0:00:06]} Rb3 {[%emt 0:00:26]} 53. Nd5 {[%emt 0:00:09]} c3 {[%emt 0:00:09]} 54. Ne3 {[%emt 0:00:08]} Rb4 {[%emt 0:00:19]} 55. Nc2 {[%emt 0:00:02]} Rc4 {[%emt 0:00:01]} 56. Kg3 {[%emt 0:00:14]} b4 {[%emt 0:00:05]} 57. d5 {[%emt 0:00:04]} b3 {[%emt 0:00:05]} 0-1

[Event "ISR-chT U14 2018"]
[Site "Nir HaEmek"]
[Date "2018.08.14"]
[Round "5"]
[White "Shavit, Inbar"]
[Black "Vagman, Roy"]
[Result "1/2-1/2"]
[ECO "C69"]
[WhiteElo "1523"]
[BlackElo "1952"]
[Annotator "NA"]
[PlyCount "168"]
[EventDate "2018.08.12"]
[EventType "team-tourn"]
[EventCountry "ISR"]
[SourceTitle "playchess.com"]
[Source "ChessBase"]
[SourceQuality "1"]
[TimeControl "3060+10"]

1. e4 {[%emt 0:00:52]} e5 {[%emt 0:01:06]} 2. Nf3 {[%emt 0:01:12]} Nc6 {[%emt 0:00:23]} 3. Bb5 {[%emt 0:00:02]} a6 {[%emt 0:00:46]} 4. Bxc6 {[%emt 0:00:03]} dxc6 {[%emt 0:00:14]} 5. O-O {[%emt 0:00:06]} f6 {[%emt 0:00:27]} 6. d4 {[%emt 0:00:46]} Bg4 {[%emt 0:05:50]} 7. dxe5 {[%emt 0:01:20]} Qxd1 {[%emt 0:00:32]} 8. Rxd1 {[%emt 0:00:03]} fxe5 {[%emt 0:00:25]} 9. Be3 {[%emt 0:02:14]} Bd6 {[%emt 0:01:30]} 10. Nbd2 {[%emt 0:00:31]} Nf6 {[%emt 0:02:12]} 11. h3 {[%emt 0:02:54]} Be6 {[%emt 0:01:44]} 12. a3 {[%emt 0:08:17]} h6 {[%emt 0:01:36]} 13. Ne1 {[%emt 0:19:19]} c5 {[%emt 0:03:20]} 14. b3 {[%emt 0:03:07]} Ke7 {[%emt 0:01:50]} 15. Nd3 {[%emt 0:00:24]} b6 {[%emt 0:00:59]} 16. c4 {[%emt 0:07:43]} Rae8 {[%emt 0:03:49]} 17. f4 {[%emt 0:00:29]} exf4 {[%emt 0:01:05]} 18. Bxf4 {[%emt 0:00:06]} Bxf4 {[%emt 0:01:35]} 19. Nxf4 {[%emt 0:00:04]} Kf7 {[%emt 0:00:10]} 20. Rf1 {[%emt 0:00:41]} Kg8 {[%emt 0:06:48]} 21. e5 {[%emt 0:00:22]} Nd7 {[%emt 0:01:21]} 22. Ng6 {[%emt 0:00:33]} Rh7 {[%emt 0:00:25]} 23. Nf3 {[%emt 0:02:16]} Bf7 {[%emt 0:01:27]} 24. Rad1 {[%emt 0:00:40]} Nf8 {[%emt 0:06:12]} 25. Nxf8 {[%emt 0:00:38]} Rxf8 {[%emt 0:00:52]} 26. Rfe1 {[%emt 0:00:22]} Be6 {[%emt 0:00:41]} 27. Nh4 {[%emt 0:00:13]} Re8 {[%emt 0:00:54]} 28. Rf1 {[%emt 0:00:09]} g5 {[%emt 0:00:34]} 29. Nf3 {[%emt 0:00:05]} Rf7 {[%emt 0:00:13]} 30. g4 {[%emt 0:00:16]} Ref8 {[%emt 0:01:23]} 31. Nd2 {[%emt 0:00:07]} Rf4 {[%emt 0:00:48]} 32. Rxf4 {[%emt 0:00:11]} Rxf4 {[%emt 0:00:03]} 33. Rf1 {[%emt 0:00:11]} Rd4 {[%emt 0:00:06]} 34. Rf2 {[%emt 0:00:02]} b5 {[%emt 0:00:18]} 35. Rf6 {[%emt 0:00:21]} bxc4 {[%emt 0:01:48]} 36. bxc4 {[%emt 0:00:08]} Bxc4 {[%emt 0:00:21]} 37. Nxc4 {[%emt 0:00:01]} Rxc4 {[%emt 0:00:01]} 38. Rxa6 {[%emt 0:00:01]} Re4 {[%emt 0:00:03]} 39. e6 {[%emt 0:00:02]} Kf8 {[%emt 0:00:16]} 40. Rc6 {[%emt 0:00:09]} Ke7 {[%emt 0:00:06]} 41. Rxc7+ {[%emt 0:00:01]} Kxe6 {[%emt 0:00:06]} 42. Rxc5 {[%emt 0:00:03]} Kd6 {[%emt 0:00:02]} 43. Rf5 {[%emt 0:00:05]} Ke6 {[%emt 0:00:09]} 44. Ra5 {[%emt 0:00:02]} Re3 {[%emt 0:00:13]} 45. Ra6+ {[%emt 0:00:02]} Ke5 {[%emt 0:00:11]} 46. Kg2 {[%emt 0:00:08]} Re2+ {[%emt 0:00:10]} 47. Kf3 {[%emt 0:00:02]} Ra2 {[%emt 0:00:02]} 48. Ke3 {[%emt 0:00:33]} h5 {[%emt 0:01:46]} 49. Ra5+ {[%emt 0:00:50]} Kf6 {[%emt 0:00:25]} 50. gxh5 {[%emt 0:00:12]} Rh2 {[%emt 0:00:02]} 51. Ra6+ {[%emt 0:00:17]} Ke5 {[%emt 0:00:05]} 52. Ra5+ {[%emt 0:00:01]} Kf6 {[%emt 0:00:01]} 53. a4 {[%emt 0:00:22]} Rxh3+ {[%emt 0:00:04]} 54. Kf2 {[%emt 0:00:02]} Rxh5 {[%emt 0:00:03]} 55. Ra8 {[%emt 0:00:05]} Rh4 {[%emt 0:00:06]} 56. a5 {[%emt 0:00:01]} Ra4 {[%emt 0:02:42]} 57. a6 {[%emt 0:00:05]} Kf5 {[%emt 0:00:00]} 58. a7 {[%emt 0:00:04]} Kg4 {[%emt 0:00:00]} 59. Kg2 {[%emt 0:00:12]} Ra2+ {[%emt 0:00:00]} 60. Kf1 {[%emt 0:00:06]} Ra1+ {[%emt 0:00:10]} 61. Ke2 {[%emt 0:00:06]} Ra2+ {[%emt 0:00:01]} 62. Kd3 {[%emt 0:00:13]} Ra3+ {[%emt 0:00:07]} 63. Kc4 {[%emt 0:00:01]} Kg3 {[%emt 0:00:26]} 64. Kb5 {[%emt 0:00:25]} g4 {[%emt 0:00:03]} 65. Kb6 {[%emt 0:00:08]} Rb3+ {[%emt 0:00:11]} 66. Ka6 {[%emt 0:00:04]} Ra3+ {[%emt 0:00:04]} 67. Kb5 {[%emt 0:00:04]} Ra1 {[%emt 0:00:34]} 68. Kb4 {[%emt 0:00:03]} Rb1+ {[%emt 0:00:03]} 69. Kc3 {[%emt 0:00:04]} Ra1 {[%emt 0:00:01]} 70. Kb2 {[%emt 0:00:01]} Ra6 {[%emt 0:00:02]} 71. Kb3 {[%emt 0:00:04]} Ra5 {[%emt 0:00:01]} 72. Kb4 {[%emt 0:00:02]} Ra1 {[%emt 0:00:01]} 73. Kb3 {[%emt 0:00:02]} Rb1+ {[%emt 0:00:33]} 74. Ka2 {[%emt 0:00:01]} Rb7 {[%emt 0:00:04]} 75. Ka1 {[%emt 0:00:01]} Kg2 {[%emt 0:00:06]} 76. Ka2 {[%emt 0:00:16]} g3 {[%emt 0:00:03]} 77. Ka3 {[%emt 0:00:01]} Kg1 {[%emt 0:00:06]} 78. Ka4 {[%emt 0:00:03]} g2 {[%emt 0:00:03]} 79. Ka5 {[%emt 0:00:03]} Rh7 {[%emt 0:00:43]} 80. Kb6 {[%emt 0:00:10]} Kh1 {[%emt 0:00:23]} 81. Rg8 {[%emt 0:00:02]} Rh6+ {[%emt 0:00:11]} 82. Kb7 {[%emt 0:00:07]} Rh7+ {[%emt 0:00:01]} 83. Kb6 {[%emt 0:00:03]} Rh6+ {[%emt 0:00:01]} 84. Kb7 {[%emt 0:00:02]} Rh7+ {[%emt 0:00:42] Kb6Rh6+ [%clk 0:00:00] Kb5Rh5+Kb4Rh4+Kb3Rh3+Ka4 [%clk 0:00:00] Rh7 [%clk 0:00:00] Kb5 [%clk 0:00:00] Rh6 [%clk 0:00:00]} 1/2-1/2